bitfinex/quotes_ETHUSD_20241018
["timestamp","ask_amount","ask_price","bid_price","bid_amount"]
[1729238653890,0.2092,2650.3,2650.2,5.1476]
[1729238654325,0.2092,2650.3,2650.2,8.53317256]
[1729238657960,0.2092,2650.3,2650.2,4.75987256]
[1729238658770,0.2092,2650.3,2650.2,4.74987256]
[1729238659063,0.2092,2650.3,2649.4,0.8239]
[1729238659064,3.77351,2650.1,2649.4,0.8239]
[1729238659230,3.77351,2650.1,2649.4,7.92657743]
[1729238659628,3.98243,2650.3,2649.6,0.01]
[1729238659827,3.98243,2650.3,2649.6,3.78402]
[1729238660082,3.98243,2650.3,2649.6,0.01]
[1729238660083,0.2092,2650.3,2649.6,0.01]
[1729238660256,0.2092,2650.3,2649.7,3.77392]
[1729238660457,0.2092,2650.3,2649.8,0.07545855]
[1729238660654,0.2092,2650.3,2649.7,3.32624743]
[1729238660655,3.98238,2650.3,2649.7,3.32624743]
[1729238660839,3.77333,2650.2,2649.8,0.55]
[1729238661040,3.77344,2650.1,2649.8,0.55]
[1729238661329,3.77344,2650.1,2649.6,0.55]
[1729238662238,3.77344,2650.1,2649.5,3.77424]
[1729238662239,3.77344,2650.1,2649.5,4.32428]
[1729238663350,7.54698,2650.1,2649.5,4.32428]
[1729238663661,3.77344,2650.1,2649.5,4.32428]
[1729238663867,3.77344,2650.1,2649.5,4.32418]
[1729238664478,7.547,2650.1,2649.5,4.32418]
[1729238664771,0.2092,2650.3,2649.9,3.77371]
[1729238664978,0.2092,2650.3,2649.8,0.01]
[1729238664979,0.2092,2650.3,2650.1,0.7711]
[1729238665178,0.2092,2650.3,2650.2,0.55]
[1729238665481,0.2092,2650.3,2650.2,3.55]
[1729238665838,0.2092,2650.3,2650.2,7.3233]
[1729238666042,0.2092,2650.3,2650.2,7.3333]
[1729238667454,0.2092,2650.3,2650.2,7.0761]
[1729238668182,0.2092,2650.3,2650.2,4.0761]
[1729238668382,0.2092,2650.3,2650.2,4.0661]
[1729238670062,0.2092,2650.3,2650.2,7.92374442]
[1729238670282,0.2092,2650.3,2650.2,7.8483]
[1729238671715,0.1296579,2651.7,2651.2,0.55]
[1729238671879,3.9008279,2651.7,2651.2,0.55]
[1729238672307,0.1296579,2651.7,2651.2,0.55]
[1729238672772,3.9008679,2651.7,2651.1,3.77192]
[1729238673280,3.77132,2651.6,2651.0,0.55]
[1729238673477,7.5427,2651.6,2651.0,0.55]
[1729238673700,3.77132,2651.6,2651.0,0.55]
[1729238674832,3.77132,2651.6,2651.0,4.32207]
[1729238674993,3.77132,2651.6,2651.0,0.55]
[1729238675198,3.77132,2651.6,2650.9,3.77219]
[1729238675396,3.77152,2651.5,2650.9,3.77219]
[1729238675985,3.77152,2651.5,2650.7,3.77253]
[1729238675986,0.1296579,2651.7,2651.5,3.77141]
[1729238676385,0.1296579,2651.7,2651.6,3.7713]
[1729238676584,0.1296579,2651.7,2651.5,3.77141]
[1729238676804,0.1296579,2651.7,2651.3,3.77166]
[1729238677024,0.1296579,2651.7,2651.3,3.7717]
[1729238677530,0.1296579,2651.7,2651.3,7.54335]
[1729238677748,0.1296579,2651.7,2651.3,3.77165]
[1729238678525,3.77138,2651.6,2651.0,4.59792]
[1729238678724,3.77138,2651.6,2651.1,3.772]
[1729238679115,0.1296579,2651.7,2651.2,3.847295]
[1729238679315,3.77132,2651.6,2651.2,0.075425]
[1729238679522,3.77132,2651.6,2651.1,3.77191]
[1729238679722,3.77145,2651.5,2651.0,3.77213]
[1729238680048,0.1296579,2651.7,2651.1,3.77194]
[1729238680248,0.1296579,2651.7,2651.0,3.77206]
[1729238680249,3.7713,2651.6,2651.0,3.77206]
[1729238680459,3.77131,2651.6,2651.0,7.54412]
[1729238680674,0.1296579,2651.7,2651.6,3.7713]
[1729238680831,0.1296579,2651.7,2651.4,3.77148]
[1729238681562,0.1296579,2651.7,2651.2,3.77178]
[1729238681868,0.1296579,2651.7,2651.1,3.77191]
[1729238681869,3.9009079,2651.7,2651.1,3.77191]
[1729238682010,3.77143,2651.6,2651.0,3.77206]
[1729238682413,3.77143,2651.6,2651.1,3.77199]
[1729238682614,3.9008479,2651.7,2651.2,3.77185]
[1729238683142,0.1296579,2651.7,2651.2,3.77185]
[1729238683467,3.77138,2651.6,2650.9,3.77229]
[1729238683750,0.1296579,2651.7,2650.7,3.77249]
[1729238683751,3.77182,2651.3,2650.7,3.77249]
[1729238683955,3.77167,2651.4,2650.8,3.77237]
[1729238684121,3.77167,2651.4,2650.7,3.77249]
[1729238684314,3.77173,2651.3,2650.8,3.77242]
[1729238684727,3.77152,2651.5,2650.9,3.77227]
[1729238684928,3.77152,2651.5,2650.7,3.77249]
[1729238685125,0.755,2651.2,2650.7,3.77247]
[1729238685605,0.755,2651.2,2650.7,7.54497]
[1729238685804,0.755,2651.2,2650.9,3.77222]
[1729238686011,0.755,2651.2,2651.0,0.07543507]
[1729238686169,4.20866737,2651.5,2650.9,3.77222]
[1729238686367,4.20866737,2651.5,2651.0,3.84758243]
[1729238686368,4.55572,2651.5,2651.0,3.84758243]
[1729238686576,4.55566,2651.5,2651.0,0.07543243]
[1729238686801,4.55566,2651.5,2651.0,3.77211]
[1729238687211,4.55566,2651.5,2650.5,8.80832146]
[1729238687212,0.7842,2651.5,2650.8,4.27988146]
[1729238687378,0.1296579,2651.7,2651.4,3.77147]
[1729238687593,0.1296579,2651.7,2651.5,0.07541926]
[1729238687992,0.1296579,2651.7,2651.5,3.84676926]
[1729238688283,0.1296579,2651.7,2651.5,0.07541926]
[1729238688882,0.1296579,2651.7,2651.6,3.7713]
[1729238689381,0.1296579,2651.7,2651.3,3.77163]
[1729238689813,0.1296579,2651.7,2651.4,3.77156]
[1729238690017,0.1296579,2651.7,2651.3,3.77163]
[1729238690886,0.1296579,2651.7,2651.4,3.7715]
[1729238691087,0.1296579,2651.7,2651.5,3.84685869]
[1729238691289,0.1296579,2651.7,2651.3,3.77162]
[1729238691899,0.1296579,2651.7,2651.6,3.7713]
[1729238692590,0.1296579,2651.7,2651.6,4.5296]
[1729238694821,0.1296579,2651.7,2651.6,3.7713]
[1729238695321,0.1296579,2651.7,2651.3,3.77162]
[1729238696021,0.97453969,2651.7,2650.9,4.61075449]
[1729238696229,0.97453969,2651.7,2650.9,3.82885449]
[1729238696425,4.54283,2651.6,2650.9,3.82890449]
[1729238696648,3.77166,2651.4,2651.0,0.07543554]
[1729238696941,0.7715,2651.6,2650.7,3.77251]
[1729238696942,3.77188,2651.2,2650.7,3.77251]
[1729238697094,3.77202,2651.1,2650.6,8.1919]
[1729238697438,3.77169,2651.4,2650.7,3.77249]
[1729238697597,3.77187,2651.2,2650.7,3.77249]
[1729238698606,3.77187,2651.2,2650.6,0.7819]
[1729238699536,3.77246,2650.8,2649.9,6.77364]
[1729238699735,0.8052,2651.0,2649.8,3.31024743]
[1729238699736,3.7729,2650.5,2649.8,3.31024743]
[1729238699962,3.7729,2650.5,2649.8,7.08399743]
[1729238700129,3.7729,2650.5,2649.9,3.77368]
[1729238700330,0.8052,2651.0,2649.9,3.77368]
[1729238700535,3.77273,2650.6,2650.0,3.77347]
[1729238701255,1.28992007,2651.0,2649.6,3.31024743]
[1729238701256,3.77324,2650.3,2649.6,3.31024743]
[1729238701397,3.77324,2650.3,2649.7,0.07546678]
[1729238701398,3.7733,2650.2,2649.7,0.07546678]
[1729238701601,4.45281374,2650.5,2649.7,0.07546678]
[1729238701602,3.77375,2649.9,2649.7,0.07546678]
[1729238701842,3.77375,2649.9,2649.4,0.7905]
[1729238701999,3.77375,2649.9,2649.2,3.77464]
[1729238702000,3.77387,2649.8,2649.2,3.77464]
[1729238702203,3.77387,2649.8,2649.1,0.8186]
[1729238702204,3.77408,2649.7,2649.1,0.8186]
[1729238702437,0.7629,2649.9,2649.2,3.7747]
[1729238702609,4.53673,2649.9,2649.2,3.7747]
[1729238702807,3.77396,2649.8,2649.2,3.7747]
[1729238703229,4.53663,2649.9,2649.3,3.77457]
[1729238703400,4.53663,2649.9,2649.3,0.07547605]
[1729238703605,3.77391,2649.8,2649.2,3.77463]
[1729238703902,3.77391,2649.8,2649.2,3.77461]
[1729238704122,3.77391,2649.8,2649.3,0.07547606]
[1729238704325,3.77391,2649.8,2649.2,3.77461]
[1729238704540,7.5479,2649.8,2649.2,3.77461]
[1729238704737,3.77405,2649.7,2649.1,0.8186]
[1729238704935,7.54817,2649.7,2649.0,3.775]
[1729238705139,3.77405,2649.7,2649.0,3.775]
[1729238705356,3.77431,2649.5,2649.0,3.775]
[1729238706125,3.77405,2649.7,2649.0,3.775]
[1729238706323,3.77405,2649.7,2649.1,0.07547966]
[1729238706761,3.77405,2649.7,2649.0,3.775]
[1729238706960,4.53669,2649.9,2649.2,3.77462]
[1729238707268,1.6158667,2650.5,2649.5,0.55]
[1729238707269,0.8293,2650.4,2649.5,0.55]
[1729238707569,7.54651,2650.3,2649.6,3.77413]
[1729238707732,3.77337,2650.2,2649.5,3.77419]
[1729238707932,3.77352,2650.1,2649.5,3.77419]
[1729238708478,3.77352,2650.1,2649.1,0.01]
[1729238708479,4.59215,2649.8,2649.1,4.54081]
[1729238708628,3.77418,2649.6,2649.1,0.766]
[1729238708829,3.77418,2649.6,2649.0,3.83162293]
[1729238709144,4.59215,2649.8,2649.0,0.05664293]
[1729238709339,3.77415,2649.6,2649.1,3.77481]
[1729238709660,8.36615,2649.8,2649.2,0.07548287]
[1729238709868,3.77405,2649.7,2649.2,0.07548287]
[1729238710166,8.36612,2649.8,2649.2,3.85012287]
[1729238710337,4.59215,2649.8,2649.2,3.85010287]
[1729238710757,8.04423623,2650.3,2649.2,3.85010287]
[1729238710758,4.56172,2650.1,2649.4,3.77436]
[1729238710927,3.77367,2650.0,2649.5,0.07547031]
[1729238711126,4.56172,2650.1,2649.5,0.07547031]
[1729238711333,4.56172,2650.1,2649.5,3.77417]
[1729238711550,4.56172,2650.1,2649.5,7.54837]
[1729238711961,4.56172,2650.1,2649.7,3.77401]
[1729238711962,0.7882,2650.1,2649.7,3.77401]
[1729238712237,0.7882,2650.1,2649.5,3.77417]
[1729238712238,0.7882,2650.1,2649.5,3.77422]
[1729238712437,4.56172,2650.1,2649.5,3.77422]
[1729238712683,4.56172,2650.1,2649.6,3.77412]
[1729238712976,4.56172,2650.1,2649.6,3.77413]
[1729238713272,4.56172,2650.1,2649.7,3.84946921]
[1729238713273,0.7882,2650.1,2649.7,3.84946921]
[1729238713435,3.77323,2650.3,2649.7,3.84946921]
[1729238713638,0.7661,2650.4,2649.9,3.77359]
[1729238714273,0.7661,2650.4,2649.5,3.77425]
[1729238714274,3.77335,2650.2,2649.5,3.77425]
[1729238714479,5.370382,2650.4,2649.7,3.77399]
[1729238714773,3.77341,2650.2,2649.5,3.77418]
[1729238714986,3.77352,2650.1,2649.5,3.77418]
[1729238715311,3.77373,2649.9,2649.3,7.54899]
[1729238715478,3.77388,2649.8,2649.3,3.77448]
[1729238715677,4.59343,2649.9,2649.3,3.77448]
[1729238715836,4.59343,2649.9,2649.1,7.88945743]
[1729238716166,4.59343,2649.9,2649.2,3.85007088]
[1729238716561,4.59343,2649.9,2649.2,0.07548088]
[1729238716768,4.59343,2649.9,2649.1,3.31024743]
[1729238716769,3.77452,2649.4,2649.1,3.31024743]
[1729238716973,3.77428,2649.6,2649.0,3.83155293]
[1729238717147,7.54857,2649.6,2649.0,3.83155293]
[1729238717341,3.77396,2649.8,2649.1,3.85034572]
[1729238717544,3.77396,2649.8,2649.3,3.77457]
[1729238717963,3.77396,2649.8,2649.2,3.77469]
[1729238718181,3.77409,2649.7,2649.1,3.77486]
[1729238718882,3.77409,2649.7,2649.1,3.77479]
[1729238719087,7.54796,2649.8,2649.2,3.7747]
[1729238719383,3.77409,2649.7,2649.2,3.7747]
[1729238719704,3.77396,2649.8,2649.1,3.77476]
[1729238719705,3.77417,2649.6,2649.1,3.77476]
[1729238719991,3.77402,2649.7,2649.2,3.77471]
[1729238720342,4.6566603,2649.8,2649.2,3.77464]
[1729238720543,4.53439,2650.2,2649.4,0.8314]
[1729238720792,0.761,2650.2,2649.7,3.774]
[1729238720953,0.761,2650.5,2650.0,3.77347]
[1729238721154,0.59103265,2650.7,2650.2,3.77319]
[1729238721459,0.59103265,2650.7,2650.1,0.07546033]
[1729238721460,3.77266,2650.7,2650.1,3.77333]
[1729238721658,4.59293,2650.8,2649.9,0.7546]
[1729238721659,0.8204,2650.8,2650.3,3.77303]
[1729238721988,0.8204,2650.8,2650.4,0.07545168]
[1729238722157,3.77225,2651.0,2650.5,3.77279]
[1729238722359,3.77225,2651.0,2650.4,3.7729]
[1729238722847,4.58333,2651.2,2650.5,3.77279]
[1729238723044,3.77202,2651.1,2650.6,0.07544499]
[1729238723359,3.77217,2651.0,2650.3,3.7731]
[1729238723558,0.8114,2651.2,2650.1,7.08140647]
[1729238723559,3.7725,2650.8,2650.1,7.08140647]
[1729238723775,3.7725,2650.8,2650.3,3.77314]
[1729238724094,7.44045104,2651.0,2650.5,3.77281]
[1729238724387,3.77232,2650.9,2650.4,0.07544957]
[1729238724549,3.77232,2650.9,2650.3,3.77306]
[1729238724750,3.77223,2651.0,2650.5,4.58793]
[1729238725063,8.35529,2651.2,2650.6,3.84815951]
[1729238725269,3.77202,2651.1,2650.6,0.07544951]
[1729238725468,4.58332,2651.2,2650.6,0.07544951]
[1729238725469,4.58332,2651.2,2650.6,3.84814951]
[1729238725787,4.58332,2651.2,2650.6,0.07544951]
[1729238725988,3.77202,2651.1,2650.6,0.07544951]
[1729238726449,7.44049104,2651.0,2650.5,0.8151]
[1729238726652,7.44049104,2651.0,2650.5,4.58793]
[1729238726864,3.66822104,2651.0,2650.5,4.58789]
[1729238727249,7.44043104,2651.0,2650.5,4.58789]
[1729238727500,3.66822104,2651.0,2650.6,3.77272]
[1729238727704,3.77231,2650.9,2650.5,0.8151]
[1729238727998,3.66822104,2651.0,2650.5,3.77279]
[1729238728490,3.66822104,2651.0,2650.4,7.54584]
[1729238728491,3.7723,2650.9,2650.4,7.54584]
[1729238728692,3.7723,2650.9,2650.4,3.77292]
[1729238728896,7.54468,2650.9,2650.3,3.77306]
[1729238729056,3.66822104,2650.7,2650.2,0.8136]
[1729238729403,3.66822104,2650.4,2649.8,3.77385]
[1729238729602,3.66822104,2650.4,2649.6,4.56896]
[1729238729603,3.77345,2650.1,2649.6,4.56896]
[1729238729803,4.58895,2650.1,2649.5,3.77425]
[1729238730005,8.36247,2650.1,2649.5,3.77425]
[1729238730157,3.77375,2649.9,2649.4,3.77436]
[1729238730503,3.77375,2649.9,2649.3,0.7742]
[1729238730504,7.44197104,2649.9,2649.3,0.7742]
[1729238730711,3.77431,2649.5,2649.2,0.05663875]
[1729238731007,3.77431,2649.5,2648.8,3.77518]
[1729238731008,3.77446,2649.4,2648.8,3.77518]
[1729238731160,3.77446,2649.4,2648.9,3.77507]
[1729238731355,3.77466,2649.3,2648.7,4.58194]
[1729238731670,3.77466,2649.3,2648.8,3.77528]
[1729238731870,3.77478,2649.2,2648.8,0.08216502]
[1729238732270,3.77487,2649.1,2648.6,3.7755]
[1729238732473,3.77478,2649.2,2648.9,0.08028203]
[1729238732689,3.77478,2649.2,2648.6,3.7755]
[1729238732893,0.773,2649.5,2649.0,3.77492]
[1729238733204,0.773,2649.5,2649.1,0.15572227]
[1729238733354,4.54742,2649.5,2649.1,0.0802361]
[1729238733559,4.54742,2649.5,2648.7,3.77532]
[1729238733560,3.77468,2649.3,2648.7,3.77532]
[1729238733772,1.23887728,2649.5,2648.8,0.08045237]
[1729238734113,0.8235,2648.9,2648.1,4.58561]
[1729238734322,7.55108,2648.7,2648.1,4.58561]
[1729238734502,3.77567,2648.6,2648.1,4.58561]
[1729238734686,3.77553,2648.7,2648.1,3.7762]
[1729238734887,0.7889,2649.2,2648.5,3.77566]
[1729238735086,0.7889,2649.2,2648.7,3.77539]
[1729238735425,0.7889,2649.2,2648.6,0.07549848]
[1729238735611,0.8257471,2649.9,2649.2,3.7747]
[1729238735612,4.56287,2649.8,2649.2,3.7747]
[1729238735792,4.56287,2649.8,2649.2,3.77463]
[1729238735992,0.7889,2649.8,2649.3,0.07548223]
[1729238736180,0.8257471,2649.9,2649.7,3.77401]
[1729238736378,3.77261,2650.7,2649.3,0.8071]
[1729238736379,0.8056,2650.5,2649.8,0.55]
[1729238736578,0.8056,2650.5,2650.1,3.77343]
[1729238736783,0.8056,2650.5,2650.1,3.77344]
[1729238737322,0.8056,2650.5,2650.0,7.62242946]
[1729238737527,0.8056,2650.5,2650.0,3.84893946]
[1729238737677,0.8056,2650.5,2650.1,3.77335]
[1729238738903,0.8056,2650.5,2650.0,3.84893946]
[1729238739108,0.8056,2650.5,2650.1,3.77336]
[1729238740078,0.8056,2650.5,2649.9,0.55]
[1729238740285,0.8056,2650.5,2650.3,3.77306]
[1729238740508,0.8056,2650.5,2650.2,3.77319]
[1729238742317,0.8056,2650.5,2650.3,3.77305]
[1729238744929,0.8056,2650.5,2650.2,3.77319]
[1729238745116,0.8056,2650.5,2650.2,7.5464]
[1729238745800,0.8056,2650.5,2650.3,3.77311]
[1729238746129,0.8056,2650.5,2650.2,3.77319]
[1729238746986,0.8056,2650.5,2650.4,3.77301]
[1729238747431,0.8056,2650.5,2650.4,0.07656322]
[1729238747636,0.8056,2650.5,2650.0,3.7735]
[1729238747782,0.833,2650.2,2649.6,3.77409]
[1729238747985,0.833,2650.2,2649.5,4.05613041]
[1729238747986,3.77345,2650.1,2649.5,3.77424]
[1729238748188,3.77345,2650.1,2649.5,7.54845]
[1729238748387,3.77345,2650.1,2649.6,3.77412]
[1729238748626,1.72096693,2650.2,2649.6,3.77412]
[1729238749086,5.49430693,2650.2,2649.6,3.77412]
[1729238749320,1.35409762,2650.1,2649.6,3.77412]
[1729238749569,1.35409762,2650.1,2649.7,3.77397]
[1729238749775,1.35409762,2650.1,2649.9,3.77368]
[1729238749925,1.72096693,2650.2,2649.8,3.77383]
[1729238751868,1.72096693,2650.2,2649.6,7.54812]
[1729238752229,1.72096693,2650.2,2649.7,3.77398]
[1729238753054,5.49433693,2650.2,2649.6,7.54809]
[1729238753574,5.49433693,2650.2,2649.7,3.77401]
[1729238753757,1.35409362,2650.1,2649.7,3.77401]
[1729238756075,1.35409362,2650.1,2649.6,3.77402]
[1729238756262,1.19557553,2650.6,2649.6,3.77402]
[1729238756263,1.59102533,2650.6,2650.1,3.77335]
[1729238756571,1.59102533,2650.6,2649.7,0.07547603]
[1729238756572,0.8077,2650.6,2649.9,0.7806]
[1729238756741,0.8077,2650.6,2650.1,7.54674]
[1729238756924,0.8077,2650.6,2650.2,3.77326]
[1729238757132,1.265737,2650.6,2650.2,3.77326]
[1729238757427,1.265737,2650.6,2650.1,3.77337]
[1729238757428,1.265737,2650.6,2650.1,7.54667]
[1729238757630,3.77287,2650.5,2650.0,3.77357]
[1729238757851,4.93618797,2650.6,2650.0,3.77358]
[1729238758067,0.8708858,2650.5,2650.0,3.77358]
[1729238758627,3.77348,2650.1,2649.2,8.1823]
[1729238758856,7.44404097,2650.0,2649.5,3.77421]
[1729238759055,0.7517,2649.6,2649.1,3.7748]
[1729238759285,7.44476097,2649.5,2648.8,0.05664846]
[1729238759441,0.7517,2649.2,2648.8,3.77516]
[1729238760196,4.52643,2649.2,2648.6,3.77546]
[1729238760349,7.44571097,2648.9,2648.2,3.77606]
[1729238760536,0.7517,2648.8,2648.2,3.77606]
[1729238760731,0.7517,2648.8,2647.9,3.77657]
[1729238760732,3.67045097,2648.7,2647.9,3.77657]
[1729238760936,3.67045097,2648.5,2647.9,3.77657]
[1729238761144,7.44627097,2648.5,2647.9,3.77657]
[1729238761372,0.8197471,2648.7,2647.9,3.77657]
[1729238761373,4.49019807,2648.7,2647.9,3.77657]
[1729238761670,0.7517,2648.8,2648.3,3.77598]
[1729238762346,0.7517,2648.8,2648.4,0.06864197]
[1729238762549,4.527,2648.8,2648.4,0.06864197]
[1729238763074,4.527,2648.8,2648.1,7.62796621]
[1729238763278,4.527,2648.8,2648.5,0.06877904]
[1729238763576,9.4996431,2648.8,2648.2,3.77609]
[1729238763772,5.7242531,2648.8,2648.2,3.77609]
[1729238764079,5.7242531,2648.8,2648.3,0.06892328]
[1729238764370,3.77555,2648.7,2648.4,0.06882174]
[1729238764696,3.77572,2648.5,2647.9,7.55287]
[1729238764835,7.44606097,2648.6,2647.8,0.05666951]
[1729238764836,3.77594,2648.4,2647.8,3.7767]
[1729238765175,7.5519,2648.4,2647.8,3.77664]
[1729238765377,0.8036,2648.3,2647.8,3.77664]
[1729238765690,0.8036,2648.3,2648.0,3.77633]
[1729238765865,0.8036,2648.6,2648.2,3.77605]
[1729238766177,0.8036,2648.6,2648.1,3.77627]
[1729238767076,0.8036,2648.6,2648.1,7.62796821]
[1729238767232,0.8036,2648.6,2648.1,3.85169821]
[1729238767430,0.8036,2648.6,2648.1,3.77618]
[1729238767674,0.8036,2648.6,2648.1,7.55238]
[1729238767883,0.8036,2648.6,2648.1,3.77618]
[1729238769636,0.8036,2648.6,2648.1,7.55238]
[1729238770237,0.8036,2648.6,2648.1,3.77618]
[1729238770437,0.8036,2648.6,2648.3,3.77599]
[1729238771636,0.8036,2648.6,2648.1,0.07551618]
[1729238771637,0.826,2648.9,2648.4,3.77584]
[1729238773154,3.77531,2648.8,2648.2,7.55212]
[1729238773477,3.77531,2648.8,2648.2,3.77606]
[1729238773775,3.77531,2648.8,2648.2,7.55211]
[1729238774557,0.83764,2648.8,2648.2,7.5521]
[1729238774793,0.83764,2648.8,2648.2,3.77605]
[1729238774794,3.7755,2648.7,2648.2,3.77605]
[1729238774963,3.7755,2648.7,2648.0,3.77638]
[1729238774964,3.77559,2648.6,2648.1,3.77628]
[1729238775292,3.77574,2648.5,2648.0,3.77638]
[1729238775477,3.77574,2648.5,2648.0,3.77635]
[1729238775684,3.77574,2648.5,2647.8,4.56844]
[1729238775880,0.804,2648.4,2647.9,3.77645]
[1729238776487,4.57997,2648.4,2647.8,7.55328]
[1729238776699,4.57997,2648.4,2647.8,3.77664]
[1729238776700,0.804,2648.4,2647.8,3.77664]
[1729238776993,0.804,2648.4,2648.0,3.77638]
[1729238777165,0.804,2648.4,2648.1,0.06730283]
[1729238777697,4.57995,2648.4,2647.8,7.55326]
[1729238777854,4.57995,2648.4,2648.2,0.06723069]
[1729238778189,4.57995,2648.4,2647.8,3.77662]
[1729238778190,3.776,2648.3,2647.8,3.77662]
[1729238778394,0.804,2648.4,2647.8,7.5532]
[1729238778694,0.804,2648.4,2647.9,0.06744712]
[1729238778695,4.57986,2648.4,2647.9,0.06744712]
[1729238778849,5.415508,2648.4,2647.9,0.06744712]
[1729238780797,3.77617,2648.2,2647.9,0.06744712]
[1729238781208,3.77617,2648.2,2647.6,3.77691]
[1729238781373,3.77617,2648.2,2648.0,0.06746977]
[1729238781694,5.31000897,2648.4,2647.4,3.77725]
[1729238781695,4.50600897,2648.4,2647.4,3.77725]
[1729238781900,4.50600897,2648.4,2647.4,3.77345]
[1729238781901,3.77652,2648.0,2647.4,3.77345]
[1729238782060,7.55305,2648.0,2647.4,3.77345]
[1729238782259,7.55305,2648.0,2647.2,7.55494]
[1729238782260,0.8074,2647.8,2647.2,7.55494]
[1729238782460,4.58412,2647.8,2647.2,7.55494]
[1729238782683,4.58412,2647.8,2647.3,3.7774]
[1729238782962,0.458412,2647.7,2647.3,3.7774]
[1729238783165,0.458412,2647.7,2647.3,3.77743]
[1729238784009,0.7873,2648.1,2647.7,3.77677]
[1729238784500,0.7873,2648.1,2647.5,3.77706]
[1729238784501,0.7873,2648.1,2647.6,3.77699]
[1729238787523,4.56366,2648.1,2647.6,3.77699]
[1729238788092,4.56366,2648.1,2647.6,7.55392]
[1729238788297,5.43223119,2648.1,2647.6,7.55385]
[1729238788525,5.43223119,2648.1,2647.6,3.77692]
[1729238789022,5.43223119,2648.1,2647.6,7.55385]
[1729238789226,1.65587119,2648.1,2647.6,3.77692]
[1729238789805,1.65587119,2648.1,2647.7,3.77686]
[1729238790717,0.7873,2648.1,2647.7,3.77686]
[1729238791227,4.52621,2648.5,2647.9,3.77646]
[1729238791386,4.52621,2648.5,2647.9,7.55292]
[1729238791586,3.77587,2648.4,2647.9,3.77646]
[1729238791890,3.77604,2648.3,2647.8,3.77671]
[1729238792392,3.77604,2648.3,2647.9,0.05925594]
[1729238793193,3.77604,2648.3,2647.8,3.56450504]
[1729238793521,3.77604,2648.3,2648.0,0.0591838]
[1729238793723,3.77604,2648.3,2647.9,0.05728075]
[1729238793909,5.0563309,2648.3,2648.1,0.05713646]
[1729238794109,3.77648,2648.0,2647.5,3.77714]
[1729238794333,3.77648,2648.0,2647.1,0.8068]
[1729238794334,3.67045097,2647.8,2647.1,0.8068]
[1729238794523,3.77717,2647.5,2646.9,3.77793]
[1729238794830,4.52984,2647.3,2646.7,3.77815]
[1729238795031,5.7275861,2647.3,2646.7,3.77815]
[1729238795202,3.77765,2647.2,2646.7,3.77815]
[1729238795405,3.77765,2647.2,2646.5,3.77851]
[1729238795406,3.7778,2647.1,2646.5,3.77851]
[1729238795747,5.7277061,2647.3,2646.5,7.5571]
[1729238795904,3.77772,2647.1,2646.6,3.77837]
[1729238796223,5.7276761,2647.3,2646.7,3.77828]
[1729238796401,0.93981271,2647.2,2646.7,3.77828]
[1729238797037,0.7524,2647.3,2646.9,3.77793]
[1729238798755,4.52988,2647.3,2646.7,3.7782]
[1729238798961,3.77758,2647.2,2646.5,3.77852]
[1729238799146,3.67045097,2647.1,2646.5,3.77852]
[1729238799369,3.77794,2647.0,2646.5,3.77852]
[1729238799664,4.9005441,2647.0,2646.5,3.77852]
[1729238799873,1.1226041,2647.0,2646.4,3.29642974]
[1729238800159,0.7524,2647.3,2646.2,3.77896]
[1729238800160,0.7547,2646.7,2646.2,3.77896]
[1729238800364,3.67045097,2646.5,2645.8,3.77955]
[1729238800659,3.77917,2646.1,2645.5,3.77992]
[1729238800860,4.5996021,2646.1,2645.9,0.05307079]
[1729238801171,4.5996021,2646.1,2645.6,3.77985]
[1729238801172,4.5995921,2646.1,2645.6,3.77985]
[1729238801465,4.5995921,2646.1,2645.5,3.77991]
[1729238801633,4.5995921,2646.1,2645.4,3.29642974]
[1729238801634,3.77943,2645.9,2645.4,3.29642974]
[1729238801839,0.762,2645.8,2645.6,0.05328759]
[1729238802036,0.762,2645.8,2645.5,0.05335987]
[1729238802234,0.762,2645.8,2645.3,7.56034]
[1729238802425,0.762,2645.8,2645.6,0.05328759]
[1729238802752,0.762,2645.8,2645.4,3.78009]
[1729238802946,0.762,2645.8,2645.7,0.05321532]
[1729238803146,0.762,2645.8,2645.4,3.78009]
[1729238803524,8.65527607,2645.8,2645.5,0.05335987]
[1729238803821,8.65527607,2645.8,2644.9,3.29642974]
[1729238803822,0.8159,2645.4,2644.9,3.29642974]
[1729238804051,0.8159,2645.4,2644.8,3.78087]
[1729238804252,0.8159,2645.4,2645.1,3.78051]
[1729238805753,8.2322863,2646.6,2645.5,3.77994]
[1729238805754,0.8009,2646.4,2645.5,3.77994]
[1729238806025,3.779,2646.3,2645.7,3.77968]
[1729238806519,0.8009,2646.4,2645.9,3.77942]
[1729238806877,0.8009,2646.4,2645.7,3.77965]
[1729238806878,4.57972,2646.4,2645.7,3.77965]
[1729238807079,0.836836,2646.3,2645.7,3.77965]
[1729238807313,0.836836,2646.3,2645.8,3.83348515]
[1729238808390,0.836836,2646.3,2645.8,0.05399515]
[1729238808589,3.77908,2646.2,2645.8,0.05399515]
[1729238808798,3.77908,2646.2,2645.6,3.77975]
[1729238809120,4.55768,2646.0,2645.4,3.78006]
[1729238809277,4.55768,2646.0,2645.7,0.05406742]
[1729238809489,4.55768,2646.0,2645.4,3.78006]
[1729238809728,3.77945,2645.9,2645.8,0.05399515]
[1729238809932,3.77945,2645.9,2645.4,3.78006]
[1729238810099,0.455785,2645.8,2645.4,3.78006]
[1729238811132,0.455785,2645.8,2645.2,7.56068]
[1729238811133,4.235445,2645.8,2645.2,7.56068]
[1729238811342,3.77966,2645.8,2645.0,3.78059]
[1729238811623,0.7954,2645.5,2645.0,3.78059]
[1729238812310,0.7954,2645.5,2644.8,3.78092]